[Event "Titled Tuesday Blitz November 29 Early 2022"]
[White "Garagulya, Konstantin"]
[Black "Postny, Evgeny"]
[WhiteFideId "4128931"]
[BlackFideId "2804344"]
[WhiteElo "2329"]
[BlackElo "2476"]
[Result "1/2-1/2"]
[Round "02"]
[TimeControl "180+1"]
[Date "2022.11.30"]
[WhiteClock "0:00:07"]
[BlackClock "0:00:01"]

1. d4 {[%clk 0:02:55]}  d5 {[%clk 0:02:58]} 2. Nf3 {[%clk 0:02:55]}  Nf6 {[%clk 0:02:58]} 3. Bg5 {[%clk 0:02:52]}  Ne4 {[%clk 0:02:55]} 4. Bf4 {[%clk 0:02:51]}  e6 {[%clk 0:02:55]} 5. Nbd2 {[%clk 0:02:51]}  Bd6 {[%clk 0:02:53]} 6. Bxd6 {[%clk 0:02:50]}  cxd6 {[%clk 0:02:51]} 7. e3 {[%clk 0:02:50]}  O-O {[%clk 0:02:50]} 8. Bd3 {[%clk 0:02:49]}  f5 {[%clk 0:02:49]} 9. c4 {[%clk 0:02:50]}  dxc4 {[%clk 0:02:48]} 10. Nxc4 {[%clk 0:02:49]}  Nc6 {[%clk 0:02:43]} 11. O-O {[%clk 0:02:47]}  Qe7 {[%clk 0:02:32]} 12. Rc1 {[%clk 0:02:37]}  Bd7 {[%clk 0:02:29]} 13. a3 {[%clk 0:02:36]}  Kh8 {[%clk 0:02:28]} 14. b4 {[%clk 0:02:17]}  Nd8 {[%clk 0:02:20]} 15. Nfd2 {[%clk 0:01:55]}  Nf6 {[%clk 0:02:11]} 16. Qc2 {[%clk 0:01:25]}  Rc8 {[%clk 0:02:01]} 17. Qb2 {[%clk 0:01:24]}  Bb5 {[%clk 0:01:52]} 18. Qb3 {[%clk 0:01:11]}  Nf7 {[%clk 0:01:46]} 19. a4 {[%clk 0:01:05]}  Bc6 {[%clk 0:01:46]} 20. Na5 {[%clk 0:01:01]}  Bd5 {[%clk 0:01:45]} 21. Bc4 {[%clk 0:01:02]}  Ng5 {[%clk 0:01:04]} 22. Bxd5 {[%clk 0:00:50]}  Nxd5 {[%clk 0:01:05]} 23. b5 {[%clk 0:00:43]}  h5 {[%clk 0:00:59]} 24. Qa3 {[%clk 0:00:41]}  Rce8 {[%clk 0:00:55]} 25. Nac4 {[%clk 0:00:36]}  Rd8 {[%clk 0:00:53]} 26. f4 {[%clk 0:00:30]}  Ne4 {[%clk 0:00:49]} 27. Nxe4 {[%clk 0:00:30]}  fxe4 {[%clk 0:00:50]} 28. Nd2 {[%clk 0:00:28]}  Nf6 {[%clk 0:00:48]} 29. Qc3 {[%clk 0:00:19]}  Rc8 {[%clk 0:00:37]} 30. Qxc8 {[%clk 0:00:15]}  Rxc8 {[%clk 0:00:37]} 31. Rxc8+ {[%clk 0:00:13]}  Kh7 {[%clk 0:00:38]} 32. h3 {[%clk 0:00:14]}  d5 {[%clk 0:00:37]} 33. Rfc1 {[%clk 0:00:12]}  Qa3 {[%clk 0:00:32]} 34. Nf1 {[%clk 0:00:10]}  Qxa4 {[%clk 0:00:32]} 35. R1c7 {[%clk 0:00:05]}  Qxb5 {[%clk 0:00:30]} 36. Rf8 {[%clk 0:00:06]}  h4 {[%clk 0:00:18]} 37. Rxf6 {[%clk 0:00:05]}  a5 {[%clk 0:00:13]} 38. Rff7 {[%clk 0:00:05]}  a4 {[%clk 0:00:13]} 39. Rxg7+ {[%clk 0:00:06]}  Kh6 {[%clk 0:00:14]} 40. Rxb7 {[%clk 0:00:05]}  Qd3 {[%clk 0:00:13]} 41. Rh7+ {[%clk 0:00:06]}  Kg6 {[%clk 0:00:13]} 42. Rhg7+ {[%clk 0:00:06]}  Kh6 {[%clk 0:00:13]} 43. Rg4 {[%clk 0:00:05]}  a3 {[%clk 0:00:12]} 44. Rxh4+ {[%clk 0:00:04]}  Kg6 {[%clk 0:00:12]} 45. Ra7 {[%clk 0:00:05]}  Qb3 {[%clk 0:00:11]} 46. Rg4+ {[%clk 0:00:05]}  Kh6 {[%clk 0:00:11]} 47. Rgg7 {[%clk 0:00:05]}  a2 {[%clk 0:00:10]} 48. Rge7 {[%clk 0:00:05]}  Kg6 {[%clk 0:00:07]} 49. Rxe6+ {[%clk 0:00:06]}  Kf5 {[%clk 0:00:07]} 50. Rea6 {[%clk 0:00:06]}  Qb6 {[%clk 0:00:01]} 51. Rxa2 {[%clk 0:00:07]}  Qa6 {[%clk 0:00:01]} 52. R7xa6 {[%clk 0:00:07]} 1/2-1/2


[Site "https://www.chess.com"]

[Event "Titled Tuesday Blitz November 29 Early 2022"]
[White "Georg, Heinz"]
[Black "Shuvalov, Evgenij"]
[WhiteFideId "4607295"]
[BlackFideId "4187237"]
[WhiteElo "2339"]
[BlackElo "2049"]
[Result "0-1"]
[Round "02"]
[TimeControl "180+1"]
[Date "2022.11.30"]
[WhiteClock "0:00:14"]
[BlackClock "0:01:35"]

1. e4 {[%clk 0:01:51]}  e6 {[%clk 0:02:59]} 2. d4 {[%clk 0:01:50]}  d5 {[%clk 0:02:59]} 3. Nc3 {[%clk 0:01:50]}  Bb4 {[%clk 0:02:58]} 4. Ne2 {[%clk 0:01:49]}  dxe4 {[%clk 0:02:57]} 5. a3 {[%clk 0:01:49]}  Bxc3+ {[%clk 0:02:57]} 6. Nxc3 {[%clk 0:01:48]}  Nc6 {[%clk 0:02:57]} 7. Be3 {[%clk 0:01:47]}  Nf6 {[%clk 0:02:56]} 8. Bb5 {[%clk 0:01:47]}  Bd7 {[%clk 0:02:55]} 9. Qd2 {[%clk 0:01:47]}  Ne7 {[%clk 0:02:54]} 10. Be2 {[%clk 0:01:40]}  Bc6 {[%clk 0:02:51]} 11. O-O-O {[%clk 0:01:39]}  Nf5 {[%clk 0:02:51]} 12. g4 {[%clk 0:01:35]}  Nxe3 {[%clk 0:02:49]} 13. Qxe3 {[%clk 0:01:35]}  Nd5 {[%clk 0:02:46]} 14. Nxd5 {[%clk 0:01:30]}  exd5 {[%clk 0:02:43]} 15. f3 {[%clk 0:01:29]}  Qe7 {[%clk 0:02:42]} 16. c4 {[%clk 0:01:27]}  O-O-O {[%clk 0:02:37]} 17. cxd5 {[%clk 0:01:25]}  Bxd5 {[%clk 0:02:37]} 18. Bd3 {[%clk 0:01:13]}  Rhe8 {[%clk 0:02:31]} 19. Rhe1 {[%clk 0:01:11]}  Qh4 {[%clk 0:02:16]} 20. fxe4 {[%clk 0:00:54]}  Qxg4 {[%clk 0:02:02]} 21. Rg1 {[%clk 0:00:54]}  Qh4 {[%clk 0:01:56]} 22. Rxg7 {[%clk 0:00:46]}  Bxe4 {[%clk 0:01:55]} 23. Bc4 {[%clk 0:00:14]}  Bc2 {[%clk 0:01:35]} 0-1


[Site "https://www.chess.com"]

[Event "Titled Tuesday Blitz November 29 Early 2022"]
[White "Gorodetzky, David"]
[Black "Tokhirjonova, Gulrukhbegim"]
[WhiteFideId "2813416"]
[BlackFideId "14203626"]
[WhiteElo "2497"]
[BlackElo "2236"]
[Result "1-0"]
[Round "02"]
[TimeControl "180+1"]
[Date "2022.11.30"]
[WhiteClock "0:00:16"]
[BlackClock "0:00:21"]

1. e4 {[%clk 0:03:00]}  e5 {[%clk 0:02:59]} 2. Nf3 {[%clk 0:02:59]}  Nc6 {[%clk 0:02:59]} 3. Bc4 {[%clk 0:02:56]}  Nf6 {[%clk 0:02:59]} 4. d3 {[%clk 0:02:55]}  Bc5 {[%clk 0:02:59]} 5. c3 {[%clk 0:02:49]}  O-O {[%clk 0:02:56]} 6. O-O {[%clk 0:02:48]}  d5 {[%clk 0:02:54]} 7. exd5 {[%clk 0:02:48]}  Nxd5 {[%clk 0:02:55]} 8. Re1 {[%clk 0:02:48]}  Re8 {[%clk 0:02:53]} 9. d4 {[%clk 0:02:48]}  Bb6 {[%clk 0:02:36]} 10. dxe5 {[%clk 0:02:45]}  Be6 {[%clk 0:02:35]} 11. Ng5 {[%clk 0:02:45]}  Qd7 {[%clk 0:02:23]} 12. Nxe6 {[%clk 0:02:42]}  fxe6 {[%clk 0:02:22]} 13. Nd2 {[%clk 0:02:41]}  Rf8 {[%clk 0:02:21]} 14. Nf3 {[%clk 0:02:38]}  Rf7 {[%clk 0:02:16]} 15. Bxd5 {[%clk 0:02:33]}  Qxd5 {[%clk 0:02:14]} 16. Qxd5 {[%clk 0:02:33]}  exd5 {[%clk 0:02:15]} 17. e6 {[%clk 0:02:33]}  Rf5 {[%clk 0:02:06]} 18. Be3 {[%clk 0:02:27]}  Re8 {[%clk 0:02:01]} 19. Bxb6 {[%clk 0:02:24]}  axb6 {[%clk 0:02:01]} 20. Rad1 {[%clk 0:02:24]}  Ne7 {[%clk 0:01:57]} 21. Nd4 {[%clk 0:02:22]}  Rf6 {[%clk 0:01:53]} 22. Nb5 {[%clk 0:02:15]}  c6 {[%clk 0:01:53]} 23. Nd6 {[%clk 0:02:03]}  Rb8 {[%clk 0:01:53]} 24. c4 {[%clk 0:02:01]}  dxc4 {[%clk 0:01:29]} 25. Nxc4 {[%clk 0:01:41]}  Nd5 {[%clk 0:01:28]} 26. Re4 {[%clk 0:01:13]}  Re8 {[%clk 0:01:25]} 27. Rde1 {[%clk 0:01:08]}  Re7 {[%clk 0:01:21]} 28. g3 {[%clk 0:00:59]}  Nc7 {[%clk 0:01:09]} 29. Nxb6 {[%clk 0:00:56]}  Rfxe6 {[%clk 0:01:09]} 30. Rxe6 {[%clk 0:00:55]}  Rxe6 {[%clk 0:01:10]} 31. Rd1 {[%clk 0:00:46]}  c5 {[%clk 0:01:07]} 32. Rd8+ {[%clk 0:00:35]}  Kf7 {[%clk 0:01:03]} 33. Nc8 {[%clk 0:00:34]}  Kf6 {[%clk 0:00:35]} 34. Rd7 {[%clk 0:00:28]}  Nb5 {[%clk 0:00:30]} 35. Rxb7 {[%clk 0:00:27]}  Nd4 {[%clk 0:00:31]} 36. b4 {[%clk 0:00:23]}  Nf3+ {[%clk 0:00:28]} 37. Kg2 {[%clk 0:00:23]}  Ne1+ {[%clk 0:00:28]} 38. Kf1 {[%clk 0:00:23]}  cxb4 {[%clk 0:00:24]} 39. Rxb4 {[%clk 0:00:23]}  Nd3 {[%clk 0:00:25]} 40. Rd4 {[%clk 0:00:20]}  Re1+ {[%clk 0:00:22]} 41. Kg2 {[%clk 0:00:21]}  Nc1 {[%clk 0:00:21]} 42. a4 {[%clk 0:00:19]}  Ne2 {[%clk 0:00:21]} 43. Re4 {[%clk 0:00:16]}  Rg1+ {[%clk 0:00:20]} 44. Kf3 {[%clk 0:00:16]}  Nc3 {[%clk 0:00:21]} 45. Rc4 {[%clk 0:00:16]}  Nd5 {[%clk 0:00:21]} 46. Nb6 {[%clk 0:00:16]}  Ra1 {[%clk 0:00:21]} 47. Nxd5+ {[%clk 0:00:16]} 1-0


[Site "https://www.chess.com"]

[Event "Titled Tuesday Blitz November 29 Early 2022"]
[White "Grandelius, Nils"]
[Black "Manelyuk, Daniil"]
[WhiteFideId "1710400"]
[BlackFideId "44173920"]
[WhiteElo "2617"]
[BlackElo "2209"]
[Result "1-0"]
[Round "02"]
[TimeControl "180+1"]
[Date "2022.11.30"]
[WhiteClock "0:00:16"]
[BlackClock "0:00:02"]

1. g3 {[%clk 0:03:00]}  c5 {[%clk 0:02:54]} 2. c4 {[%clk 0:03:00]}  Nc6 {[%clk 0:02:54]} 3. Bg2 {[%clk 0:03:01]}  g6 {[%clk 0:02:54]} 4. Nc3 {[%clk 0:02:59]}  Bg7 {[%clk 0:02:54]} 5. Nf3 {[%clk 0:03:00]}  e5 {[%clk 0:02:54]} 6. d3 {[%clk 0:02:58]}  Nge7 {[%clk 0:02:54]} 7. h4 {[%clk 0:02:59]}  h5 {[%clk 0:02:51]} 8. Ng5 {[%clk 0:02:47]}  d6 {[%clk 0:02:47]} 9. Nge4 {[%clk 0:02:43]}  O-O {[%clk 0:02:42]} 10. Nb5 {[%clk 0:02:38]}  Nf5 {[%clk 0:02:33]} 11. Bg5 {[%clk 0:02:32]}  f6 {[%clk 0:02:22]} 12. Bd2 {[%clk 0:02:33]}  a6 {[%clk 0:02:22]} 13. Nbc3 {[%clk 0:02:33]}  Nfd4 {[%clk 0:02:20]} 14. Nd5 {[%clk 0:02:18]}  Be6 {[%clk 0:02:16]} 15. e3 {[%clk 0:02:13]}  Nf5 {[%clk 0:02:16]} 16. g4 {[%clk 0:02:02]}  hxg4 {[%clk 0:02:01]} 17. Qxg4 {[%clk 0:02:03]}  Bxd5 {[%clk 0:01:54]} 18. cxd5 {[%clk 0:02:01]}  Nce7 {[%clk 0:01:54]} 19. h5 {[%clk 0:01:46]}  g5 {[%clk 0:01:45]} 20. O-O-O {[%clk 0:01:33]}  Bh6 {[%clk 0:01:33]} 21. Qf3 {[%clk 0:01:26]}  Nh4 {[%clk 0:01:23]} 22. Rxh4 {[%clk 0:01:18]}  gxh4 {[%clk 0:01:23]} 23. Qg4+ {[%clk 0:01:14]}  Kh8 {[%clk 0:01:19]} 24. Qe6 {[%clk 0:01:14]}  Nc8 {[%clk 0:01:01]} 25. Rh1 {[%clk 0:01:05]}  Qe8 {[%clk 0:01:01]} 26. Bh3 {[%clk 0:00:59]}  Qxe6 {[%clk 0:00:59]} 27. Bxe6 {[%clk 0:01:00]}  f5 {[%clk 0:00:58]} 28. Nc3 {[%clk 0:00:47]}  Ne7 {[%clk 0:00:53]} 29. Rxh4 {[%clk 0:00:45]}  b5 {[%clk 0:00:53]} 30. Ne2 {[%clk 0:00:42]}  Kh7 {[%clk 0:00:47]} 31. Rh2 {[%clk 0:00:35]}  Bg5 {[%clk 0:00:45]} 32. Ng1 {[%clk 0:00:33]}  Ng8 {[%clk 0:00:40]} 33. Nf3 {[%clk 0:00:32]}  Be7 {[%clk 0:00:38]} 34. Rh3 {[%clk 0:00:30]}  Nh6 {[%clk 0:00:38]} 35. e4 {[%clk 0:00:31]}  fxe4 {[%clk 0:00:36]} 36. dxe4 {[%clk 0:00:31]}  Rf6 {[%clk 0:00:19]} 37. Kd1 {[%clk 0:00:29]}  Raf8 {[%clk 0:00:18]} 38. Ke2 {[%clk 0:00:29]}  Rxe6 {[%clk 0:00:16]} 39. dxe6 {[%clk 0:00:27]}  Ng4 {[%clk 0:00:17]} 40. h6 {[%clk 0:00:15]}  Rg8 {[%clk 0:00:12]} 41. Rg3 {[%clk 0:00:13]}  Rg6 {[%clk 0:00:12]} 42. Ng5+ {[%clk 0:00:12]}  Bxg5 {[%clk 0:00:10]} 43. Rxg4 {[%clk 0:00:12]}  Be7 {[%clk 0:00:09]} 44. Rxg6 {[%clk 0:00:12]}  Kxg6 {[%clk 0:00:10]} 45. f4 {[%clk 0:00:12]}  exf4 {[%clk 0:00:08]} 46. Bxf4 {[%clk 0:00:13]}  Kf6 {[%clk 0:00:08]} 47. e5+ {[%clk 0:00:11]}  dxe5 {[%clk 0:00:07]} 48. Bxe5+ {[%clk 0:00:12]}  Kg6 {[%clk 0:00:08]} 49. Bg7 {[%clk 0:00:12]}  Bg5 {[%clk 0:00:07]} 50. Kd3 {[%clk 0:00:12]}  Be7 {[%clk 0:00:06]} 51. b3 {[%clk 0:00:13]}  a5 {[%clk 0:00:06]} 52. Ke4 {[%clk 0:00:13]}  c4 {[%clk 0:00:05]} 53. bxc4 {[%clk 0:00:14]}  bxc4 {[%clk 0:00:05]} 54. Kd4 {[%clk 0:00:15]}  Ba3 {[%clk 0:00:04]} 55. Kxc4 {[%clk 0:00:15]}  Be7 {[%clk 0:00:03]} 56. Kd5 {[%clk 0:00:15]}  a4 {[%clk 0:00:02]} 57. Kc6 {[%clk 0:00:15]}  a3 {[%clk 0:00:02]} 58. Kd7 {[%clk 0:00:16]} 1-0


[Site "https://www.chess.com"]

[Event "Titled Tuesday Blitz November 29 Early 2022"]
[White "Gurevich, Dmitry"]
[Black "Arbunic Castro, Giovanna"]
[WhiteFideId "2000407"]
[BlackFideId "3400549"]
[WhiteElo "2506"]
[BlackElo "1938"]
[Result "1-0"]
[Round "02"]
[TimeControl "180+1"]
[Date "2022.11.30"]
[WhiteClock "0:00:55"]
[BlackClock "0:00:04"]

1. d4 {[%clk 0:02:49]}  Nf6 {[%clk 0:02:58]} 2. c4 {[%clk 0:02:48]}  g6 {[%clk 0:02:57]} 3. Nc3 {[%clk 0:02:48]}  Bg7 {[%clk 0:02:56]} 4. e4 {[%clk 0:02:48]}  d6 {[%clk 0:02:55]} 5. Nf3 {[%clk 0:02:48]}  O-O {[%clk 0:02:55]} 6. Be2 {[%clk 0:02:48]}  e5 {[%clk 0:02:54]} 7. O-O {[%clk 0:02:47]}  Nbd7 {[%clk 0:02:52]} 8. Be3 {[%clk 0:02:47]}  Ng4 {[%clk 0:02:50]} 9. Bg5 {[%clk 0:02:46]}  f6 {[%clk 0:02:48]} 10. Bd2 {[%clk 0:02:45]}  a6 {[%clk 0:02:30]} 11. Qc2 {[%clk 0:02:36]}  exd4 {[%clk 0:02:08]} 12. Nxd4 {[%clk 0:02:35]}  Nc5 {[%clk 0:02:07]} 13. b4 {[%clk 0:02:29]}  f5 {[%clk 0:02:06]} 14. bxc5 {[%clk 0:02:21]}  Bxd4 {[%clk 0:02:02]} 15. cxd6 {[%clk 0:02:16]}  cxd6 {[%clk 0:01:57]} 16. Rad1 {[%clk 0:02:11]}  Qb6 {[%clk 0:01:52]} 17. Be1 {[%clk 0:01:59]}  Be6 {[%clk 0:01:23]} 18. h3 {[%clk 0:01:48]}  Ne5 {[%clk 0:01:20]} 19. Na4 {[%clk 0:01:39]}  Qc6 {[%clk 0:01:12]} 20. Rxd4 {[%clk 0:01:37]}  fxe4 {[%clk 0:01:02]} 21. Nc3 {[%clk 0:01:33]}  Bf5 {[%clk 0:00:59]} 22. Nd5 {[%clk 0:01:29]}  Rae8 {[%clk 0:00:52]} 23. Ne3 {[%clk 0:01:26]}  Qb6 {[%clk 0:00:37]} 24. Qd2 {[%clk 0:01:21]}  Nd3 {[%clk 0:00:33]} 25. Rd5 {[%clk 0:01:15]}  Be6 {[%clk 0:00:24]} 26. Bxd3 {[%clk 0:01:11]}  Bxd5 {[%clk 0:00:22]} 27. Nxd5 {[%clk 0:01:11]}  Qd4 {[%clk 0:00:19]} 28. Be2 {[%clk 0:01:04]}  Qe5 {[%clk 0:00:14]} 29. Qe3 {[%clk 0:01:02]}  b5 {[%clk 0:00:07]} 30. Bc3 {[%clk 0:01:02]}  Qf5 {[%clk 0:00:04]} 31. Bg4 {[%clk 0:00:55]} 1-0


[Site "https://www.chess.com"]

[Event "Titled Tuesday Blitz November 29 Early 2022"]
[White "Han, Yichen"]
[Black "Deac, Bogdan-Daniel"]
[WhiteFideId "1054430"]
[BlackFideId "1226380"]
[WhiteElo "2323"]
[BlackElo "2648"]
[Result "1/2-1/2"]
[Round "02"]
[TimeControl "180+1"]
[Date "2022.11.30"]
[WhiteClock "0:00:06"]
[BlackClock "0:00:08"]

1. e4 {[%clk 0:03:00]}  c5 {[%clk 0:02:58]} 2. Nc3 {[%clk 0:03:00]}  a6 {[%clk 0:02:54]} 3. a4 {[%clk 0:02:52]}  e6 {[%clk 0:02:52]} 4. g3 {[%clk 0:02:51]}  d5 {[%clk 0:02:52]} 5. exd5 {[%clk 0:02:49]}  exd5 {[%clk 0:02:52]} 6. d4 {[%clk 0:02:49]}  Be6 {[%clk 0:02:35]} 7. Nge2 {[%clk 0:02:45]}  Nc6 {[%clk 0:02:33]} 8. Bg2 {[%clk 0:02:45]}  Nf6 {[%clk 0:02:32]} 9. O-O {[%clk 0:02:44]}  Be7 {[%clk 0:02:28]} 10. Be3 {[%clk 0:02:43]}  c4 {[%clk 0:02:16]} 11. Nf4 {[%clk 0:02:42]}  O-O {[%clk 0:02:12]} 12. Re1 {[%clk 0:02:36]}  Bb4 {[%clk 0:02:09]} 13. Nxe6 {[%clk 0:02:34]}  fxe6 {[%clk 0:02:10]} 14. Bg5 {[%clk 0:02:31]}  Qd7 {[%clk 0:02:05]} 15. Re2 {[%clk 0:02:12]}  h6 {[%clk 0:02:01]} 16. Bf4 {[%clk 0:02:03]}  Rae8 {[%clk 0:01:54]} 17. Na2 {[%clk 0:02:02]}  Bd6 {[%clk 0:01:49]} 18. Bxd6 {[%clk 0:02:00]}  Qxd6 {[%clk 0:01:50]} 19. c3 {[%clk 0:01:54]}  b5 {[%clk 0:01:28]} 20. Qc2 {[%clk 0:01:48]}  e5 {[%clk 0:00:32]} 21. dxe5 {[%clk 0:01:41]}  Nxe5 {[%clk 0:00:27]} 22. Rae1 {[%clk 0:01:33]}  Nd3 {[%clk 0:00:21]} 23. Rxe8 {[%clk 0:01:30]}  Nxe8 {[%clk 0:00:21]} 24. Rf1 {[%clk 0:01:30]}  Nf6 {[%clk 0:00:19]} 25. Nc1 {[%clk 0:01:25]}  Nc5 {[%clk 0:00:18]} 26. axb5 {[%clk 0:01:24]}  axb5 {[%clk 0:00:19]} 27. Ne2 {[%clk 0:01:24]}  Nce4 {[%clk 0:00:18]} 28. Nf4 {[%clk 0:01:20]}  g5 {[%clk 0:00:16]} 29. Ne2 {[%clk 0:01:12]}  Qb6 {[%clk 0:00:14]} 30. Nd4 {[%clk 0:01:07]}  Kg7 {[%clk 0:00:13]} 31. Nf5+ {[%clk 0:00:58]}  Kg6 {[%clk 0:00:05]} 32. Ne7+ {[%clk 0:00:57]}  Kg7 {[%clk 0:00:05]} 33. Nxd5 {[%clk 0:00:53]}  Nxd5 {[%clk 0:00:06]} 34. Qxe4 {[%clk 0:00:53]}  Nf6 {[%clk 0:00:06]} 35. Qf5 {[%clk 0:00:46]}  Re8 {[%clk 0:00:05]} 36. Rd1 {[%clk 0:00:39]}  b4 {[%clk 0:00:05]} 37. Qf3 {[%clk 0:00:35]}  bxc3 {[%clk 0:00:04]} 38. Qxc3 {[%clk 0:00:36]}  Qe6 {[%clk 0:00:04]} 39. Ra1 {[%clk 0:00:34]}  Qe5 {[%clk 0:00:03]} 40. h3 {[%clk 0:00:30]}  Qxc3 {[%clk 0:00:03]} 41. bxc3 {[%clk 0:00:31]}  Re2 {[%clk 0:00:04]} 42. Ra4 {[%clk 0:00:30]}  Re1+ {[%clk 0:00:02]} 43. Kh2 {[%clk 0:00:30]}  Re2 {[%clk 0:00:03]} 44. Kg1 {[%clk 0:00:26]}  Re1+ {[%clk 0:00:03]} 45. Kh2 {[%clk 0:00:22]}  Re2 {[%clk 0:00:03]} 46. Rxc4 {[%clk 0:00:23]}  Rxf2 {[%clk 0:00:03]} 47. Kg1 {[%clk 0:00:23]}  Rc2 {[%clk 0:00:03]} 48. Rc7+ {[%clk 0:00:23]}  Kg6 {[%clk 0:00:03]} 49. c4 {[%clk 0:00:23]}  Rc1+ {[%clk 0:00:03]} 50. Kh2 {[%clk 0:00:22]}  Rc2 {[%clk 0:00:04]} 51. g4 {[%clk 0:00:19]}  h5 {[%clk 0:00:04]} 52. Kg3 {[%clk 0:00:18]}  Rc3+ {[%clk 0:00:04]} 53. Kf2 {[%clk 0:00:18]}  hxg4 {[%clk 0:00:04]} 54. hxg4 {[%clk 0:00:19]}  Nxg4+ {[%clk 0:00:04]} 55. Ke2 {[%clk 0:00:16]}  Rc2+ {[%clk 0:00:05]} 56. Kf3 {[%clk 0:00:15]}  Ne5+ {[%clk 0:00:05]} 57. Kg3 {[%clk 0:00:15]}  Rc3+ {[%clk 0:00:05]} 58. Kf2 {[%clk 0:00:14]}  g4 {[%clk 0:00:05]} 59. Be4+ {[%clk 0:00:13]}  Kg5 {[%clk 0:00:05]} 60. Bd5 {[%clk 0:00:13]}  Kf4 {[%clk 0:00:04]} 61. Rg7 {[%clk 0:00:12]}  Rc2+ {[%clk 0:00:04]} 62. Ke1 {[%clk 0:00:11]}  Nxc4 {[%clk 0:00:05]} 63. Rc7 {[%clk 0:00:10]}  Ne3 {[%clk 0:00:03]} 64. Rxc2 {[%clk 0:00:09]}  Nxc2+ {[%clk 0:00:04]} 65. Kf2 {[%clk 0:00:09]}  Ne3 {[%clk 0:00:04]} 66. Ba8 {[%clk 0:00:09]}  Nf5 {[%clk 0:00:04]} 67. Kg1 {[%clk 0:00:09]}  Nd6 {[%clk 0:00:04]} 68. Bc6 {[%clk 0:00:09]}  Nc4 {[%clk 0:00:05]} 69. Ba8 {[%clk 0:00:09]}  Ne5 {[%clk 0:00:05]} 70. Bh1 {[%clk 0:00:09]}  Nf3+ {[%clk 0:00:05]} 71. Kf2 {[%clk 0:00:09]}  g3+ {[%clk 0:00:05]} 72. Kf1 {[%clk 0:00:08]}  Kg4 {[%clk 0:00:04]} 73. Bg2 {[%clk 0:00:06]}  Kf4 {[%clk 0:00:05]} 74. Bh3 {[%clk 0:00:05]}  Nh2+ {[%clk 0:00:04]} 75. Kg1 {[%clk 0:00:04]}  Nf3+ {[%clk 0:00:05]} 76. Kf1 {[%clk 0:00:05]}  Nh4 {[%clk 0:00:05]} 77. Kg1 {[%clk 0:00:04]}  Kf3 {[%clk 0:00:05]} 78. Bf1 {[%clk 0:00:05]}  Kg4 {[%clk 0:00:05]} 79. Bg2 {[%clk 0:00:05]}  Kf4 {[%clk 0:00:04]} 80. Bb7 {[%clk 0:00:05]}  Nf3+ {[%clk 0:00:05]} 81. Bxf3 {[%clk 0:00:04]}  Kxf3 {[%clk 0:00:05]} 82. Kf1 {[%clk 0:00:04]}  Kg4 {[%clk 0:00:06]} 83. Kg2 {[%clk 0:00:04]}  Kh4 {[%clk 0:00:06]} 84. Kg1 {[%clk 0:00:05]}  Kh3 {[%clk 0:00:06]} 85. Kh1 {[%clk 0:00:05]}  g2+ {[%clk 0:00:07]} 86. Kg1 {[%clk 0:00:06]}  Kg3 {[%clk 0:00:08]} 1/2-1/2


[Site "https://www.chess.com"]

[Event "Titled Tuesday Blitz November 29 Early 2022"]
[White "Handjaba, Mclean"]
[Black "Szpar, Milosz"]
[WhiteFideId "15200515"]
[BlackFideId "1184989"]
[WhiteElo "1691"]
[BlackElo "2422"]
[Result "0-1"]
[Round "02"]
[TimeControl "180+1"]
[Date "2022.11.30"]
[WhiteClock "0:01:42"]
[BlackClock "0:01:44"]

1. e4 {[%clk 0:03:00]}  c5 {[%clk 0:02:54]} 2. Nf3 {[%clk 0:03:00]}  g6 {[%clk 0:02:42]} 3. c4 {[%clk 0:02:58]}  Nc6 {[%clk 0:02:39]} 4. d4 {[%clk 0:02:57]}  cxd4 {[%clk 0:02:39]} 5. Nxd4 {[%clk 0:02:57]}  Nf6 {[%clk 0:02:34]} 6. Nc3 {[%clk 0:02:55]}  d6 {[%clk 0:02:34]} 7. Be2 {[%clk 0:02:55]}  Bg7 {[%clk 0:02:32]} 8. O-O {[%clk 0:02:55]}  O-O {[%clk 0:02:32]} 9. f3 {[%clk 0:02:55]}  Nxe4 {[%clk 0:02:15]} 10. Nxc6 {[%clk 0:02:52]}  Nxc3 {[%clk 0:02:15]} 11. Nxd8 {[%clk 0:02:44]}  Nxd1 {[%clk 0:02:15]} 12. Nxb7 {[%clk 0:02:37]}  Nxb2 {[%clk 0:02:14]} 13. Rb1 {[%clk 0:02:15]}  Na4 {[%clk 0:02:11]} 14. Na5 {[%clk 0:02:09]}  Nc3 {[%clk 0:02:09]} 15. Rb2 {[%clk 0:02:09]}  Be6 {[%clk 0:01:59]} 16. Rc2 {[%clk 0:02:01]}  Bf5 {[%clk 0:01:54]} 17. Rb2 {[%clk 0:01:52]}  Rab8 {[%clk 0:01:51]} 18. Rxb8 {[%clk 0:01:51]}  Rxb8 {[%clk 0:01:44]} 19. Bd1 {[%clk 0:01:42]}  Rb1 {[%clk 0:01:44]} 0-1


[Site "https://www.chess.com"]

[Event "Titled Tuesday Blitz November 29 Early 2022"]
[White "Hartikainen, Jarmo"]
[Black "Winterberg, Lukas"]
[WhiteFideId "503134"]
[BlackFideId "24622702"]
[WhiteElo "2209"]
[BlackElo "2349"]
[Result "1-0"]
[Round "02"]
[TimeControl "180+1"]
[Date "2022.11.30"]
[WhiteClock "0:02:48"]
[BlackClock "0:02:11"]

1. e4 {[%clk 0:03:00]}  c5 {[%clk 0:02:55]} 2. c3 {[%clk 0:03:00]}  Nf6 {[%clk 0:02:49]} 3. e5 {[%clk 0:02:59]}  Nd5 {[%clk 0:02:50]} 4. d4 {[%clk 0:02:59]}  cxd4 {[%clk 0:02:50]} 5. Nf3 {[%clk 0:02:58]}  d6 {[%clk 0:02:41]} 6. cxd4 {[%clk 0:02:56]}  Nc6 {[%clk 0:02:38]} 7. Nc3 {[%clk 0:02:55]}  Nxc3 {[%clk 0:02:37]} 8. bxc3 {[%clk 0:02:55]}  dxe5 {[%clk 0:02:35]} 9. d5 {[%clk 0:02:54]}  Na5 {[%clk 0:02:33]} 10. Bb5+ {[%clk 0:02:53]}  Bd7 {[%clk 0:02:32]} 11. Qa4 {[%clk 0:02:53]}  e4 {[%clk 0:02:19]} 12. Ne5 {[%clk 0:02:48]}  e6 {[%clk 0:02:11]} 1-0


[Site "https://www.chess.com"]